bitfinex/quotes_ETHUSD_20260216
["timestamp","ask_amount","ask_price","bid_price","bid_amount"]
[1771245528514,1.25176212,1997.2,1996.2,0.45716061]
[1771245529226,1.73340179,1997.2,1996.2,0.45716061]
[1771245530414,0.48163967,1997.1,1996.2,0.001]
[1771245532208,0.48163967,1997.2,1996.2,0.001]
[1771245532433,1.25181892,1997.1,1996.2,0.001]
[1771245532823,1.73345859,1997.1,1996.2,0.001]
[1771245533228,0.48163967,1997.0,1996.2,0.001]
[1771245534137,1.2519405,1996.9,1996.2,0.001]
[1771245534438,1.73358017,1996.9,1996.2,0.001]
[1771245535931,0.48163967,1996.8,1996.2,0.001]
[1771245536127,1.2519405,1996.9,1996.2,0.001]
[1771245536742,6.8454017,1997.0,1996.2,0.001]
[1771245538041,0.48163967,1996.9,1996.2,0.001]
[1771245538624,0.48163967,1996.7,1996.2,0.001]
[1771245539219,0.48163967,1996.7,1996.0,0.001]
[1771245540234,0.48163967,1996.7,1996.3,0.001]
[1771245540753,6.36486203,1997.0,1996.3,0.001]
[1771245540754,1.7346482,1997.0,1996.3,0.001]
[1771245540924,0.0011,1997.0,1996.3,0.50718135]
[1771245542057,1.73463211,1997.0,1996.3,0.001]
[1771245543120,0.48163967,1996.9,1996.3,0.001]
[1771245543521,1.25299244,1997.0,1996.3,0.001]
[1771245543751,1.73463211,1997.0,1996.3,0.001]
[1771245544758,0.48163967,1996.9,1996.3,0.001]
[1771245545254,1.2520032,1996.8,1996.3,0.001]
[1771245545461,0.48163967,1996.7,1996.3,0.001]
[1771245546735,0.48163967,1996.5,1996.0,0.001]
[1771245547951,1.73389372,1996.4,1996.0,0.001]
[1771245549177,0.48163967,1996.3,1995.7,0.001]
[1771245549880,1.84063967,1996.2,1995.7,0.001]
[1771245550048,1.73408193,1996.1,1995.5,0.001]
[1771245551051,0.48163967,1996.0,1995.5,0.001]
[1771245552078,0.48163967,1995.8,1994.9,0.45616061]
[1771245552442,1.84163967,1995.8,1994.8,0.526]
[1771245553970,1.84163967,1995.8,1995.6,0.001]
[1771245554141,1.25269329,1995.7,1994.8,0.526]
[1771245554464,1.25269329,1995.7,1995.5,0.001]
[1771245554766,1.25269329,1995.7,1994.8,0.526]
[1771245554966,1.25269329,1995.7,1995.3,0.001]
[1771245555746,0.48864588,1995.6,1994.7,0.001]
[1771245556192,0.48864588,1995.4,1994.7,0.001]
[1771245556470,0.48864588,1995.2,1994.5,0.001]
[1771245559663,0.48864588,1995.0,1994.5,0.001]
[1771245560181,5.01228008,1995.4,1994.5,0.001]
[1771245560182,1.25275606,1995.6,1994.6,0.48677241]
[1771245560357,1.741388,1995.7,1994.6,0.48677241]
[1771245560551,0.48864588,1995.7,1994.6,0.48677241]
[1771245560752,1.74135399,1995.7,1994.6,0.48677241]
[1771245561268,2.6126774,1995.8,1994.6,0.48677241]
[1771245563080,3.10132328,1995.8,1994.6,0.48677241]
[1771245564180,3.10127715,1995.8,1994.6,0.48677241]
[1771245564885,1.25263127,1995.8,1994.6,0.48677241]
[1771245565058,5.01011179,1996.0,1994.6,0.48677241]
[1771245566875,5.01011179,1996.0,1994.8,0.48677241]
[1771245567096,0.0011,1995.9,1994.8,0.48677241]
[1771245567402,0.0011,1995.9,1994.9,0.48677241]
[1771245567680,0.0011,1995.9,1994.8,0.522]
[1771245567681,0.0011,1996.2,1995.5,0.48677241]
[1771245567881,0.0011,1996.2,1995.6,0.48677241]
[1771245568188,0.0011,1996.4,1995.6,0.48677241]
[1771245568366,0.0011,1996.4,1995.6,1.00877241]
[1771245568565,0.0011,1996.4,1995.7,0.48677241]
[1771245570260,0.0011,1997.0,1995.8,0.48677241]
[1771245570460,0.0011,1997.0,1996.0,0.48677241]
[1771245571485,0.0011,1997.0,1996.2,0.48677241]
[1771245571694,0.0011,1997.0,1996.4,0.48677241]
[1771245572599,0.0011,1997.0,1996.3,1.425]
[1771245572600,0.0011,1997.4,1996.6,0.48677241]
[1771245572770,0.0011,1997.5,1996.3,1.61185624]
[1771245572771,0.0011,1997.5,1996.7,0.48677241]
[1771245573965,0.0011,1997.5,1996.9,0.48677241]
[1771245574797,0.0011,1997.5,1996.9,1.00877241]
[1771245575287,0.0011,1997.5,1997.0,0.48677241]
[1771245577891,0.0011,1997.5,1996.9,0.521]
[1771245578084,0.0011,1997.5,1997.0,0.48677241]
[1771245579306,5.00475451,1998.5,1997.0,0.48677241]
[1771245579307,0.48864588,1998.5,1997.0,0.48677241]
[1771245579605,0.0011,1997.7,1997.1,0.48677241]
[1771245579781,1.25093945,1998.5,1997.1,0.48677241]
[1771245579986,1.25081302,1998.7,1997.1,0.48677241]
[1771245580775,1.7394589,1998.7,1997.1,0.48677241]
[1771245581902,1.25081302,1998.7,1997.1,0.48677241]
[1771245582103,0.01010984,1999.0,1997.6,0.48677241]
[1771245582275,0.01010984,1999.0,1998.0,0.48677241]
[1771245582475,1.2607415,1999.0,1998.0,0.48677241]
[1771245582687,0.01010984,1999.0,1998.0,0.48677241]
[1771245583605,2.70153886,2000.0,1998.7,5.961551]
[1771245583806,0.1311881,2001.5,1998.4,0.18685624]
[1771245583807,1.74383494,2000.9,1999.4,0.45229976]
[1771245583973,1.74383494,2000.9,1999.5,1.87529976]
[1771245584174,0.49439719,2000.5,1999.1,0.521]
[1771245584376,0.49439719,2000.8,1999.2,0.45229976]
[1771245585605,1.24956265,2000.7,1999.2,0.45229976]
[1771245586878,1.74395984,2000.7,1999.2,0.45229976]
[1771245587077,1.74395984,2000.7,1999.4,0.45229976]
[1771245587582,1.24956265,2000.7,1999.4,0.45229976]
[1771245588811,0.4651593,2000.6,1999.3,0.52]
[1771245589302,0.4651593,2000.6,1999.2,0.902]
[1771245589303,0.4651593,2000.4,1999.2,0.902]
[1771245589503,1.24981252,2000.3,1999.2,0.902]
[1771245589695,1.24981252,2000.3,1999.3,0.47058945]
[1771245591005,1.71497182,2000.3,1999.2,0.902]
[1771245591311,1.24962511,2000.6,1999.3,0.47058945]
[1771245591604,0.0011,2000.5,1999.3,9.15295147]
[1771245591803,0.0011,2000.5,1999.4,0.47058945]
[1771245592008,0.0011,2000.5,1999.6,0.47058945]
[1771245593144,0.4662593,2000.5,1999.5,0.519]
[1771245593422,0.4662593,2000.5,1999.2,0.902]
[1771245593627,0.4651593,2000.3,1999.2,0.902]
[1771245593924,0.4651593,2000.3,1998.9,1.419]
[1771245594338,2.0084,2000.2,1998.9,1.419]
[1771245594481,0.4651593,2000.0,1998.9,0.901]
[1771245594676,0.4651593,1999.9,1998.9,0.901]
[1771245595320,2.59075004,2000.4,1998.9,1.37158945]
[1771245595321,0.4651593,2000.2,1998.9,1.37158945]
[1771245595561,0.4651593,2000.2,1998.6,0.47058945]
[1771245595680,0.4651593,2000.0,1998.6,0.47058945]
[1771245596583,0.4651593,2000.0,1998.3,0.518]
[1771245596584,0.4651593,2000.0,1998.3,0.98858945]
[1771245596777,0.4651593,2000.0,1998.3,0.47058945]
[1771245597588,1.7150968,2000.1,1998.3,0.47058945]
[1771245598018,0.4651593,2000.0,1998.3,0.47058945]
[1771245598223,0.4651593,1999.8,1998.3,0.47058945]
[1771245598518,0.4651593,1999.6,1998.3,0.47058945]
[1771245599223,0.4651593,1999.6,1998.2,1.88958945]
[1771245599520,0.4651593,1999.9,1998.3,0.47058945]
[1771245599806,1.25012501,1999.8,1998.3,0.47058945]
[1771245600919,3.05303431,2000.2,1998.5,0.47058945]
[1771245601094,1.71503431,2000.2,1998.5,0.47058945]
[1771245601288,1.24987501,2000.2,1998.7,0.47058945]
[1771245601684,0.4651593,2000.3,1998.8,0.517]
[1771245601908,1.24975004,2000.4,1998.9,0.47058945]
[1771245602309,1.25083578,2000.5,1998.9,0.47058945]
[1771245602699,1.71599508,2000.5,1998.9,0.47058945]
[1771245602899,0.4651593,2000.4,1998.9,0.47058945]
[1771245603116,0.4651593,2000.4,1998.9,1.88858945]
[1771245603418,1.25083578,2000.5,1999.3,0.47058945]
[1771245603419,0.0011,2000.5,1999.3,0.47058945]
[1771245603920,0.0011,2000.5,1999.5,0.47058945]
[1771245604217,0.0011,2000.3,1999.5,0.47058945]
[1771245605293,0.0011,2000.3,1999.3,1.418]
[1771245606425,0.4662593,2000.3,1998.6,0.47058945]
[1771245606591,0.4662593,2000.3,1998.8,0.47058945]
[1771245607022,0.4662593,2000.3,1998.9,0.516]
[1771245607191,0.4662593,2000.3,1998.9,1.88758945]
[1771245607821,0.4651593,2000.1,1998.9,1.88758945]
[1771245608707,0.4651593,2000.1,1998.9,0.47058945]
[1771245609011,0.0011,2000.3,1998.9,0.47058945]
[1771245609315,1.25092725,2000.3,1998.9,0.47058945]
[1771245609521,0.4651593,2000.2,1998.9,1.88758945]
[1771245609922,1.7150968,2000.1,1998.9,1.88758945]
[1771245610420,0.4651593,2000.0,1998.8,0.516]
[1771245611518,0.4651593,2000.0,1998.7,0.901]
[1771245611827,1.7152218,1999.9,1998.7,0.901]
[1771245612206,1.7152218,1999.9,1998.6,1.88658945]
[1771245612727,0.4651593,1999.8,1998.5,1.88658945]
[1771245613035,0.4651593,1999.8,1998.4,0.18785624]
[1771245613036,0.4651593,1999.8,1998.6,0.47058945]
[1771245613243,0.4651593,1999.8,1998.4,0.18785624]
[1771245613427,0.4651593,1999.3,1998.4,0.001]
[1771245613929,0.47063776,1999.1,1998.4,0.001]
[1771245614114,0.47063776,1999.1,1998.3,0.001]
[1771245614446,0.47063776,1998.9,1998.1,0.001]
[1771245615115,0.47063776,1998.9,1997.4,0.48343025]
[1771245615116,0.47063776,1998.9,1997.4,0.49450586]
[1771245615840,1.25087327,1998.7,1997.4,0.49450586]
[1771245616038,1.72132563,1998.9,1997.4,0.49450586]
[1771245616463,0.47063776,1998.8,1997.4,0.48343025]
[1771245616624,0.47063776,1998.8,1997.4,0.49452456]
[1771245617011,0.47063776,1998.8,1998.0,0.001]
[1771245617227,0.47063776,1998.8,1997.9,0.001]
[1771245618050,0.47063776,1998.6,1997.9,0.001]
[1771245619149,0.47063776,1999.8,1998.2,0.48343025]
[1771245619370,1.51147028,2000.0,1998.4,0.48343025]
[1771245619658,1.25004979,2000.0,1998.6,0.48343025]
[1771245619856,1.25004979,2000.0,1998.1,9.37794402]
[1771245619857,1.25004979,2000.0,1998.7,0.49451453]
[1771245620753,1.25106427,2000.1,1998.8,0.48343025]
[1771245620918,1.25105283,2000.1,1999.0,0.48343025]
[1771245621119,0.0011,2000.1,1999.0,0.48343025]
[1771245621551,1.25104469,2000.1,1999.0,0.48343025]
[1771245622049,0.0011,2000.1,1999.0,0.48343025]
[1771245624164,0.0011,2000.1,1999.0,0.43623025]
[1771245624367,0.0011,2000.1,1998.9,0.01108039]
[1771245624535,0.47173776,2000.1,1998.8,0.91208039]
[1771245625382,0.47173776,2000.1,1998.8,0.01108039]
[1771245625532,0.47173776,2000.1,1998.4,1.39550953]
[1771245625962,1.25,2000.0,1998.4,1.39550953]
[1771245626261,0.47063776,1999.7,1998.4,1.38443025]
[1771245626457,1.79863776,1999.7,1998.4,1.38443025]
[1771245626760,1.79863776,1999.7,1998.4,0.901]
[1771245626761,0.47063776,1999.6,1998.4,0.901]
[1771245627284,0.47063776,1999.6,1998.3,0.01108769]
[1771245627456,0.47063776,1999.6,1998.3,0.49451683]
[1771245628375,1.25031257,1999.5,1998.3,0.48343025]
[1771245628687,0.47063776,1999.4,1998.2,0.49451683]
[1771245628857,5.00018785,2000.0,1998.2,0.48343025]
[1771245629055,5.47082561,2000.0,1998.5,0.48443025]
[1771245629257,5.47082561,2000.0,1998.6,0.49451405]
[1771245629456,0.0011,1999.9,1998.6,0.49451405]
[1771245629681,0.47173776,1999.9,1998.6,0.49451405]
[1771245630358,1.25012501,1999.8,1998.6,0.49451405]
[1771245632588,0.47063776,1999.7,1998.5,0.001]
[1771245632887,2.57712501,1999.8,1998.5,0.48443025]
[1771245634397,0.47063776,1999.7,1998.5,0.48443025]
[1771245634573,0.47063776,1999.7,1998.5,0.001]
[1771245635479,0.47063776,1999.4,1998.5,0.001]
[1771245635679,1.328,1999.3,1998.5,0.001]
[1771245636487,1.2505002,1999.2,1998.5,0.001]
[1771245637321,1.72113796,1999.2,1998.5,0.001]
[1771245637820,0.47063776,1999.1,1998.5,0.001]
[1771245638102,0.47063776,1999.0,1998.5,0.001]
[1771245638310,0.47063776,1999.0,1998.4,0.001]
[1771245638496,1.25068787,1998.9,1998.4,0.001]
[1771245639614,1.329,1998.8,1998.4,0.001]
[1771245640687,1.25081302,1998.7,1998.4,0.001]
[1771245641816,1.72145078,1998.7,1998.2,0.001]
[1771245642007,2.57979673,1998.8,1998.2,0.001]
[1771245643727,2.57979673,1998.8,1998.5,0.001]
[1771245644010,1.73156905,1999.3,1998.4,0.001]
[1771245644331,1.2505002,1999.2,1998.4,0.001]
[1771245645091,2.5855002,1999.2,1998.4,0.001]
[1771245645515,1.2505002,1999.2,1998.4,0.49074058]
[1771245646120,1.25031257,1999.5,1998.4,0.49074058]
[1771245646518,1.335,1999.4,1998.4,0.49074058]
[1771245647513,1.25043765,1999.3,1998.4,0.49074058]
[1771245648519,1.71536988,1999.3,1998.4,0.001]
[1771245649222,1.335,1999.2,1998.4,0.001]
[1771245649993,1.25056275,1999.1,1998.4,0.001]
[1771245651123,1.71549498,1999.1,1998.4,0.001]
[1771245651322,6.33725101,1999.2,1998.4,0.001]
[1771245651323,1.25023388,1999.7,1998.5,0.49682338]
[1771245651499,5.00065254,1999.8,1998.5,0.49682338]
[1771245651500,1.25017149,1999.8,1998.5,0.49682338]
[1771245651913,1.336,1999.7,1998.4,0.49782338]
[1771245652112,1.25025005,1999.6,1998.4,0.49782338]
[1771245654000,0.46493223,1999.5,1998.4,0.001]
[1771245655228,1.71518228,1999.6,1998.4,0.49782338]
[1771245655426,1.337,1999.4,1998.4,0.49782338]
[1771245656028,1.25043765,1999.3,1998.5,0.001]
[1771245656933,5.00146134,1999.5,1998.5,0.49782338]
[1771245657134,6.33846134,1999.5,1998.5,0.49782338]
[1771245657628,0.0011,1999.6,1998.5,0.49782338]
[1771245657930,1.337,1999.5,1998.5,0.49782338]
[1771245658232,1.25139949,1999.6,1998.7,0.49682338]
[1771245658233,0.0011,1999.6,1998.7,0.49682338]
[1771245659216,0.0011,1999.6,1998.8,0.49682338]
[1771245661837,0.0011,1999.6,1999.0,0.49682338]
[1771245662345,0.0011,1999.6,1998.8,0.901]
[1771245662833,0.0011,1999.6,1998.7,0.49682338]
[1771245664122,0.46493223,1999.5,1998.5,0.001]
[1771245664319,1.25037511,1999.4,1998.5,0.001]
[1771245664521,1.71530734,1999.4,1998.5,0.001]
[1771245668716,2.58237511,1999.4,1998.5,0.49782338]
[1771245669322,2.58237511,1999.4,1998.5,0.001]
[1771245669521,3.04730734,1999.4,1998.5,0.001]
[1771245670946,11.70674587,1999.4,1998.5,0.001]
[1771245671150,3.04730734,1999.4,1998.5,0.001]
[1771245676753,0.46759164,1999.3,1998.5,0.001]
[1771245678753,9.12703017,1999.1,1998.4,0.001]
[1771245678936,1.2505002,1999.2,1998.4,0.46049435]
[1771245679330,1.2505002,1999.2,1998.4,0.001]
[1771245679524,0.46759164,1999.1,1998.2,0.001]
[1771245679727,0.46759164,1999.1,1997.9,0.001]
[1771245679728,0.46759164,1998.7,1997.9,0.001]
[1771245679928,1.71809184,1999.2,1997.9,0.46049435]
[1771245680159,1.332,1999.1,1997.9,0.46049435]
[1771245680477,1.332,1999.1,1998.6,0.001]
[1771245680841,1.25062531,1999.0,1998.6,0.001]
[1771245681358,1.71821695,1999.0,1998.3,0.001]
[1771245681996,0.46759164,1998.8,1997.9,0.001]
[1771245683259,1.25081302,1998.7,1997.9,0.001]
[1771245683464,1.333,1998.6,1997.9,0.001]
[1771245686793,0.46759164,1998.4,1997.1,0.001]
[1771245687077,8.65943853,1998.2,1997.2,0.45949435]
[1771245687245,1.68059164,1998.1,1997.1,0.001]
[1771245687446,0.46759164,1998.0,1997.1,0.001]
[1771245687869,1.71852984,1998.5,1997.1,0.46049435]
[1771245688071,1.333,1998.4,1997.1,0.46049435]
[1771245688769,0.46759164,1998.3,1997.1,0.46049435]
[1771245688976,1.25112601,1998.2,1997.1,0.46049435]
[1771245690473,1.71871765,1998.2,1997.1,0.46049435]
[1771245690853,1.25125125,1998.0,1997.1,0.001]
[1771245691065,1.80159164,1997.9,1997.1,0.001]
[1771245691555,0.46759164,1997.8,1997.1,0.001]
[1771245693082,0.46759164,1997.6,1996.8,0.001]
[1771245693265,1.334,1997.5,1996.8,0.001]
[1771245693472,0.46759164,1997.4,1996.8,0.001]
[1771245693779,0.46759164,1997.4,1996.9,0.001]
[1771245694580,0.46759164,1997.4,1996.2,0.45949435]
[1771245694781,0.46759164,1997.3,1996.2,0.45949435]
[1771245694983,1.71934409,1997.2,1996.2,0.45949435]
[1771245695188,0.46759164,1997.1,1995.9,0.45949435]
[1771245695386,0.46759164,1997.0,1995.8,0.902]
[1771245695880,0.46759164,1997.0,1995.8,1.36149435]
[1771245696055,0.46759164,1996.9,1995.8,0.902]
[1771245696771,8.65943853,1997.0,1995.5,0.45949435]
[1771245696772,0.46759164,1996.7,1995.5,0.45949435]
[1771245697079,0.46759164,1996.5,1995.2,0.45949435]
[1771245697462,1.25212861,1996.6,1995.2,0.45949435]
[1771245697784,1.334,1996.5,1995.3,0.45949435]
[1771245697982,2.58612861,1996.6,1995.3,0.45949435]
[1771245699984,3.05372025,1996.6,1995.3,0.45949435]
[1771245701670,2.58612861,1996.6,1995.3,0.45949435]
[1771245701868,1.335,1996.5,1995.3,0.45949435]
[1771245704300,1.25204818,1996.8,1995.3,0.45949435]
[1771245704599,1.335,1996.7,1995.3,0.45949435]
[1771245704983,2.58699236,1996.9,1995.5,0.47496689]
[1771245705866,0.0011,1996.7,1995.5,0.47496689]
[1771245706507,0.47155078,1996.7,1995.5,0.47496689]
[1771245708511,1.25212861,1996.6,1995.5,0.47496689]
[1771245708683,1.334,1996.5,1995.5,0.47496689]
[1771245709411,1.334,1996.5,1995.4,0.45805283]
[1771245709412,1.79738387,1996.5,1995.4,0.45805283]
[1771245709782,0.46338387,1996.4,1995.4,0.001]
[1771245710100,1.25212861,1996.6,1995.4,0.45805283]
[1771245710299,0.0011,1996.8,1995.7,0.45705283]
[1771245710626,0.0011,1996.8,1995.9,0.45705283]
[1771245717808,0.0011,1996.8,1995.5,0.45705283]
[1771245718011,0.0011,1996.8,1995.7,0.45705283]
[1771245719941,0.46448387,1996.8,1995.7,0.45705283]
[1771245720532,0.46448387,1996.8,1996.0,0.001]
[1771245720736,0.0011,1996.7,1996.0,0.001]
[1771245721544,0.46338387,1996.5,1995.7,0.001]
[1771245722229,0.46338387,1996.4,1995.7,0.001]
[1771245723620,0.46338387,1996.2,1995.7,0.001]
[1771245723947,0.0011,1996.8,1995.7,0.45805283]
[1771245724125,0.0011,1996.8,1995.8,0.45705283]
[1771245724653,1.25317003,1996.7,1995.8,0.45705283]
[1771245724851,0.0011,1996.7,1995.8,0.45705283]
[1771245726344,0.0011,1996.7,1995.7,0.904]
[1771245726345,1.2500609,1997.1,1996.1,0.45705283]
[1771245726813,1.71519494,1997.2,1996.1,0.45705283]
[1771245728361,1.71514299,1997.2,1996.1,0.45705283]
[1771245731428,1.33,1997.2,1996.1,0.45705283]
[1771245731933,2.58179466,1997.2,1996.1,0.45705283]
[1771245732135,1.25161793,1997.5,1996.1,0.45705283]
[1771245732335,1.33,1997.4,1996.1,0.45705283]
[1771245732635,0.46338387,1997.3,1996.1,0.45705283]
[1771245732835,0.46338387,1997.1,1995.8,0.45705283]
[1771245733661,5.00578008,1997.7,1995.7,1.6056]
[1771245733662,0.46338387,1997.8,1996.0,0.45705283]
[1771245733858,1.71481063,1997.8,1996.0,0.45705283]
[1771245734057,1.71481063,1997.8,1996.2,0.001]
[1771245734236,1.33,1997.7,1996.3,0.49418344]
[1771245734569,0.0011,1997.1,1996.3,0.49418344]
[1771245740383,11.39949966,1998.5,1996.4,0.49418344]
[1771245740589,1.72835683,1998.4,1996.9,0.49418344]
[1771245740754,1.72835683,1998.4,1997.1,0.49418344]
[1771245742659,1.25089822,1998.6,1997.1,0.49418344]
[1771245743475,0.47731903,1998.5,1997.1,0.49418344]
[1771245744578,0.47731903,1998.5,1997.2,1.416]
[1771245744771,0.47731903,1998.5,1997.3,0.49418344]
[1771245744971,1.2510008,1998.4,1997.3,0.49418344]
[1771245746473,1.72827069,1998.5,1997.3,0.49418344]
[1771245748688,1.325,1998.5,1997.3,0.49418344]
[1771245749257,0.0011,1998.3,1997.3,0.49418344]
[1771245752693,0.47841903,1998.3,1997.3,1.00818344]
[1771245752898,0.0011,1998.3,1997.4,0.49418344]
[1771245757368,0.0011,1998.3,1997.6,0.49418344]
[1771245757598,0.0011,1998.7,1997.9,0.49418344]
[1771245758366,0.0011,1998.7,1998.0,0.49418344]
[1771245762283,0.47731903,1998.6,1997.3,0.59658344]
[1771245762592,0.47731903,1998.6,1997.5,0.49418344]
[1771245763102,0.47731903,1998.6,1997.5,0.49518344]
[1771245763303,0.47841903,1998.6,1997.5,0.49518344]
[1771245763784,0.0011,1998.6,1997.5,0.49518344]
[1771245765599,0.47334535,1998.6,1997.5,0.49518344]
[1771245765783,0.47334535,1998.6,1997.5,1.91118344]
[1771245766813,0.47224535,1998.0,1997.2,0.001]
[1771245767113,0.47224535,1998.3,1997.2,0.001]
[1771245767677,0.47224535,1998.3,1997.2,0.46914925]
[1771245767878,0.47224535,1998.3,1997.2,0.001]
[1771245768800,0.47043105,1998.1,1997.2,0.001]
[1771245771617,0.47043105,1997.9,1997.2,0.001]
[1771245773052,0.47043105,1998.3,1997.2,0.46914925]
[1771245773217,0.47043105,1998.5,1997.2,0.46914925]
[1771245773529,1.25200667,1998.6,1997.4,0.46814925]
[1771245773832,0.0011,1998.6,1997.4,0.46814925]
[1771245774129,0.47153105,1998.6,1997.4,0.98214925]
[1771245774632,0.47153105,1998.6,1997.2,0.903]
[1771245775510,0.47153105,1998.6,1997.2,0.001]
[1771245775847,0.47043105,1998.4,1997.2,0.001]
[1771245776076,0.47043105,1998.2,1997.2,0.001]
[1771245777369,0.47043105,1998.2,1997.3,0.001]
[1771245777738,1.25118862,1998.1,1997.3,0.001]
[1771245778160,0.47043105,1998.0,1997.3,0.001]
[1771245779837,1.72174492,1997.9,1997.3,0.001]
[1771245780333,1.25116412,1998.2,1997.3,0.46914925]
[1771245780730,0.47043105,1998.1,1997.3,0.001]
[1771245781647,0.47043105,1998.0,1997.3,0.001]
[1771245781834,1.25131387,1997.9,1997.3,0.001]
[1771245782767,1.72174492,1997.9,1997.3,0.001]
[1771245790296,0.47043105,1997.8,1997.3,0.001]
[1771245791171,0.47153105,1997.8,1997.3,0.001]
[1771245793496,0.0011,1997.8,1997.3,0.001]
[1771245794423,0.47571238,1997.8,1997.3,0.001]
[1771245796102,0.0011,1997.8,1997.3,0.001]
[1771245796307,0.0011,1997.8,1997.3,0.49725205]
[1771245798590,0.0011,1997.8,1997.3,0.001]
[1771245803490,1.25247651,1997.8,1997.3,0.001]
[1771245804727,1.25247651,1997.8,1997.4,0.001]
[1771245805118,0.0011,1997.7,1997.4,0.001]
[1771245811733,0.0011,1997.7,1997.2,0.001]
[1771245812432,0.0011,1997.7,1997.2,0.49725205]
[1771245814449,0.0011,1997.7,1997.3,0.04833506]
[1771245814749,0.0011,1997.7,1997.4,0.49625205]
[1771245816162,0.0011,1997.7,1997.2,0.49725205]
[1771245817239,0.0011,1997.7,1997.4,0.49625205]
[1771245818636,0.0011,1997.7,1997.4,0.001]
[1771245818829,0.0011,1997.7,1997.0,0.00025205]
[1771245819136,0.0011,1997.7,1997.1,0.49725205]
[1771245821443,0.0011,1997.9,1997.3,0.49625205]
[1771245821760,0.0011,1997.9,1997.5,0.49625205]
[1771245821933,0.0011,1998.3,1997.5,0.49625205]
[1771245822140,0.0011,1998.3,1997.6,0.49625205]
[1771245822646,0.0011,1998.7,1997.8,0.49625205]
[1771245823255,0.0011,1998.7,1998.0,0.49625205]
[1771245824444,0.0011,1998.7,1997.9,0.4622049]
[1771245826388,0.0011,1998.8,1998.3,0.4622049]
[1771245826946,0.0011,1998.8,1997.8,0.4622049]
[1771245826947,0.4714213,1998.8,1997.8,0.4622049]
[1771245828284,1.72217448,1998.8,1997.8,0.4622049]
[1771245828990,0.4714213,1998.8,1997.8,0.4622049]
[1771245829794,0.0011,1998.8,1997.8,0.4622049]
[1771245831262,0.0011,1998.7,1997.8,0.4622049]
[1771245832964,0.0011,1998.7,1998.0,0.4816165]
[1771245834411,0.0011,1998.7,1998.2,0.4816165]
[1771245841194,0.0011,1998.8,1998.2,0.4816165]
[1771245843414,0.0011,1998.6,1998.2,0.4816165]
[1771245844112,0.0011,1998.8,1998.1,0.514]
[1771245844113,1.25023659,1999.7,1998.4,0.4816165]
[1771245844820,1.25025429,1999.6,1998.4,0.4816165]
[1771245844991,1.25033097,1999.5,1998.4,0.4816165]
[1771245846719,1.25027631,1999.6,1998.4,0.4816165]
[1771245846921,1.25023829,1999.7,1998.4,0.4816165]
[1771245848421,1.25023829,1999.7,1998.6,0.4816165]
[1771245848422,0.0011,1999.3,1998.6,0.4816165]
[1771245848591,11.38618159,2000.0,1999.0,0.4816165]
[1771245848592,0.47043634,1999.9,1999.0,0.4816165]
[1771245849109,0.47043634,1999.9,1998.7,1.415]
[1771245849110,0.47043634,1999.9,1998.7,1.8966165]
[1771245849310,0.47043634,1999.9,1998.8,0.4816165]
[1771245849501,0.47043634,1999.9,1998.9,0.514]
[1771245849700,0.47043634,1999.9,1998.9,0.9956165]
[1771245849905,0.47043634,1999.9,1998.9,8.21166694]
[1771245850111,0.47043634,1999.8,1998.9,8.21166694]
[1771245851232,0.47043634,1999.8,1999.0,0.4816165]
[1771245851622,0.47043634,1999.8,1998.9,0.9956165]
[1771245851821,0.47043634,1999.8,1999.0,0.4816165]
[1771245852026,0.47043634,1999.8,1999.0,7.69766694]
[1771245852515,0.47043634,1999.8,1999.1,0.4816165]
[1771245852937,0.47659134,2000.0,1999.1,0.4816165]
[1771245853811,0.47659134,2000.0,1999.0,7.21605044]
[1771245854134,0.48791065,1999.9,1999.0,7.21605044]
[1771245854338,0.48791065,1999.7,1998.7,0.47132263]
[1771245854634,1.25009597,1999.9,1998.8,1.415]
[1771245854635,0.48791065,1999.5,1998.8,1.415]
[1771245855737,0.48791065,1999.5,1998.7,0.513]
[1771245857105,0.48791065,1999.4,1998.7,0.513]
[1771245858608,0.48791065,1999.3,1998.7,0.513]
[1771245859033,0.48791065,1999.6,1998.7,0.513]
[1771245861428,0.48791065,1999.5,1998.7,0.513]
[1771245862738,0.48791065,1999.4,1998.5,0.001]
[1771245863125,0.48791065,1999.3,1998.5,0.001]
[1771245864009,0.48791065,1999.3,1998.4,0.001]
[1771245864706,0.48791065,1999.1,1998.4,0.001]
[1771245865417,0.48791065,1999.1,1998.2,0.001]
[1771245866513,0.48791065,1999.0,1998.2,0.001]
[1771245867652,0.48791065,1998.9,1998.2,0.001]
[1771245868719,0.48791065,1998.9,1998.3,0.001]
[1771245869551,0.48791065,1998.8,1998.3,0.001]
[1771245872222,0.48791065,1998.6,1998.3,0.001]
[1771245872423,0.48791065,1998.6,1998.0,0.001]
[1771245874454,1.2509382,1998.5,1998.0,0.001]
[1771245874650,0.48791065,1998.4,1998.0,0.001]
[1771245877662,1.73897405,1998.3,1998.0,0.001]
[1771245879874,0.48791065,1998.2,1998.0,0.001]
[1771245881685,0.48791065,1998.2,1997.9,0.001]
[1771245881890,1.73909927,1998.1,1997.9,0.001]
[1771245882258,0.0011,1998.3,1997.9,0.001]
[1771245883383,0.0011,1998.3,1997.9,0.47232263]
[1771245883782,0.0011,1998.6,1997.9,0.47232263]
[1771245884086,0.0011,1998.6,1998.1,0.49538744]
[1771245886182,0.0011,1998.6,1997.9,0.49638744]
[1771245888386,0.0011,1998.6,1998.1,0.49083941]
[1771245890798,0.48222414,1999.3,1998.3,0.49083941]
[1771245891380,0.0011,1999.4,1998.3,0.49083941]
[1771245893514,0.0011,1999.4,1998.3,0.50095238]
[1771245894184,0.0011,1998.5,1998.3,0.50095238]
[1771245894507,0.0011,1999.4,1998.4,0.49083941]
[1771245894703,0.0011,1998.6,1998.4,0.49083941]
[1771245894907,0.0011,1998.8,1998.6,0.49083941]
[1771245895109,0.0011,1999.4,1998.6,0.49083941]
[1771245895290,0.0011,1999.4,1998.6,1.39183941]
[1771245895611,0.0011,1999.4,1998.7,0.49083941]
[1771245898215,0.0011,1999.4,1998.8,0.50094831]
[1771245898916,0.0011,1999.4,1998.8,0.49083941]
[1771245899302,0.0011,1999.4,1998.6,0.901]
[1771245899303,0.0011,1999.7,1999.0,0.49083941]